[Event "Titled Tuesday Blitz July 4 Late 2023"]
[White "Karas, Marek"]
[Black "Gardezi, Arsal"]
[WhiteFideId "14928558"]
[BlackFideId "30949521"]
[WhiteElo "2451"]
[BlackElo "2195"]
[Result "1/2-1/2"]
[Round "2"]
[TimeControl "180+2"]
[Date "2023.07.04"]
[WhiteClock "0:00:04"]
[BlackClock "0:00:12"]
[Board "169"]

1. d4 {[%clk 0:03:00]}  Nf6 {[%clk 0:02:58]} 2. Nf3 {[%clk 0:03:00]}  e6 {[%clk 0:02:58]} 3. Bf4 {[%clk 0:02:57]}  c5 {[%clk 0:02:55]} 4. e3 {[%clk 0:02:52]}  Qb6 {[%clk 0:02:52]} 5. Qc1 {[%clk 0:02:33]}  Nc6 {[%clk 0:02:48]} 6. c3 {[%clk 0:02:32]}  d5 {[%clk 0:02:43]} 7. Nbd2 {[%clk 0:02:27]}  Bd7 {[%clk 0:02:43]} 8. h3 {[%clk 0:02:23]}  Rc8 {[%clk 0:02:43]} 9. Be2 {[%clk 0:02:23]}  Ne4 {[%clk 0:02:31]} 10. O-O {[%clk 0:02:20]}  Be7 {[%clk 0:02:11]} 11. Bh2 {[%clk 0:02:08]}  O-O {[%clk 0:02:10]} 12. Qb1 {[%clk 0:01:58]}  f5 {[%clk 0:02:10]} 13. Nxe4 {[%clk 0:01:55]}  fxe4 {[%clk 0:02:09]} 14. Ne5 {[%clk 0:01:55]}  Nxe5 {[%clk 0:02:07]} 15. Bxe5 {[%clk 0:01:53]}  Bf6 {[%clk 0:02:02]} 16. Bg3 {[%clk 0:01:47]}  Bb5 {[%clk 0:01:58]} 17. Re1 {[%clk 0:01:31]}  Bxe2 {[%clk 0:01:48]} 18. Rxe2 {[%clk 0:01:32]}  cxd4 {[%clk 0:01:49]} 19. cxd4 {[%clk 0:01:32]}  Rc6 {[%clk 0:01:46]} 20. Rc2 {[%clk 0:01:27]}  Rfc8 {[%clk 0:01:45]} 21. Rxc6 {[%clk 0:01:27]}  Rxc6 {[%clk 0:01:45]} 22. b3 {[%clk 0:01:21]}  Be7 {[%clk 0:01:44]} 23. Qb2 {[%clk 0:01:19]}  Qa5 {[%clk 0:01:40]} 24. a3 {[%clk 0:01:06]}  Qc3 {[%clk 0:01:39]} 25. Qxc3 {[%clk 0:00:54]}  Rxc3 {[%clk 0:01:38]} 26. b4 {[%clk 0:00:54]}  Kf7 {[%clk 0:01:12]} 27. Bb8 {[%clk 0:00:47]}  a6 {[%clk 0:01:09]} 28. Ba7 {[%clk 0:00:44]}  Bd6 {[%clk 0:01:00]} 29. g4 {[%clk 0:00:26]}  e5 {[%clk 0:00:58]} 30. Kg2 {[%clk 0:00:24]}  Ke6 {[%clk 0:00:56]} 31. dxe5 {[%clk 0:00:18]}  Bxe5 {[%clk 0:00:56]} 32. Ra2 {[%clk 0:00:18]}  Rd3 {[%clk 0:00:53]} 33. a4 {[%clk 0:00:12]}  Rb3 {[%clk 0:00:53]} 34. Bc5 {[%clk 0:00:08]}  Bc3 {[%clk 0:00:50]} 35. Rc2 {[%clk 0:00:04]}  Bxb4 {[%clk 0:00:48]} 36. Bd4 {[%clk 0:00:04]}  Kd7 {[%clk 0:00:32]} 37. Bxg7 {[%clk 0:00:03]}  Ra3 {[%clk 0:00:26]} 38. Rb2 {[%clk 0:00:04]}  Rxa4 {[%clk 0:00:26]} 39. Bd4 {[%clk 0:00:03]}  b5 {[%clk 0:00:24]} 40. g5 {[%clk 0:00:03]}  Be7 {[%clk 0:00:24]} 41. h4 {[%clk 0:00:03]}  Rc4 {[%clk 0:00:21]} 42. Kh3 {[%clk 0:00:03]}  b4 {[%clk 0:00:20]} 43. Kg4 {[%clk 0:00:03]}  a5 {[%clk 0:00:21]} 44. Ra2 {[%clk 0:00:02]}  Bd8 {[%clk 0:00:15]} 45. h5 {[%clk 0:00:02]}  b3 {[%clk 0:00:14]} 46. Ra1 {[%clk 0:00:02]}  a4 {[%clk 0:00:14]} 47. g6 {[%clk 0:00:02]}  hxg6 {[%clk 0:00:13]} 48. hxg6 {[%clk 0:00:03]}  Rxd4 {[%clk 0:00:11]} 49. g7 {[%clk 0:00:03]}  b2 {[%clk 0:00:09]} 50. Rb1 {[%clk 0:00:03]}  a3 {[%clk 0:00:09]} 51. g8=Q {[%clk 0:00:03]}  a2 {[%clk 0:00:09]} 52. Qf7+ {[%clk 0:00:03]}  Kc8 {[%clk 0:00:10]} 53. Qe6+ {[%clk 0:00:03]}  Kc7 {[%clk 0:00:10]} 54. Qf7+ {[%clk 0:00:03]}  Kc8 {[%clk 0:00:10]} 55. Rxb2 {[%clk 0:00:03]}  a1=Q {[%clk 0:00:10]} 56. Rc2+ {[%clk 0:00:03]}  Rc4 {[%clk 0:00:09]} 57. Rxc4+ {[%clk 0:00:03]}  dxc4 {[%clk 0:00:10]} 58. Qxc4+ {[%clk 0:00:03]}  Bc7 {[%clk 0:00:10]} 59. Qxe4 {[%clk 0:00:03]}  Qg7+ {[%clk 0:00:10]} 60. Kf3 {[%clk 0:00:03]}  Qf6+ {[%clk 0:00:10]} 61. Ke2 {[%clk 0:00:03]}  Qb2+ {[%clk 0:00:10]} 62. Kf3 {[%clk 0:00:03]}  Qf6+ {[%clk 0:00:11]} 63. Kg2 {[%clk 0:00:03]}  Qg5+ {[%clk 0:00:11]} 64. Kf1 {[%clk 0:00:04]}  Qb5+ {[%clk 0:00:11]} 65. Kg1 {[%clk 0:00:03]}  Qh5 {[%clk 0:00:10]} 66. Qg2 {[%clk 0:00:01]}  Qc5 {[%clk 0:00:09]} 67. Qf3 {[%clk 0:00:01]}  Qc1+ {[%clk 0:00:09]} 68. Kg2 {[%clk 0:00:01]}  Qc5 {[%clk 0:00:10]} 69. Qg4+ {[%clk 0:00:02]}  Kb7 {[%clk 0:00:09]} 70. Qf3+ {[%clk 0:00:02]}  Kb6 {[%clk 0:00:10]} 71. e4 {[%clk 0:00:03]}  Qe5 {[%clk 0:00:10]} 72. Qb3+ {[%clk 0:00:02]}  Kc6 {[%clk 0:00:10]} 73. Qd3 {[%clk 0:00:02]}  Qh2+ {[%clk 0:00:09]} 74. Kf3 {[%clk 0:00:02]}  Qh1+ {[%clk 0:00:10]} 75. Ke2 {[%clk 0:00:02]}  Qh5+ {[%clk 0:00:10]} 76. f3 {[%clk 0:00:02]}  Qh2+ {[%clk 0:00:10]} 77. Kd1 {[%clk 0:00:02]}  Bf4 {[%clk 0:00:09]} 78. Qd5+ {[%clk 0:00:02]}  Kc7 {[%clk 0:00:10]} 79. Qc4+ {[%clk 0:00:02]}  Kd7 {[%clk 0:00:10]} 80. Qd3+ {[%clk 0:00:02]}  Ke6 {[%clk 0:00:11]} 81. Qd5+ {[%clk 0:00:03]}  Kf6 {[%clk 0:00:11]} 82. Qd3 {[%clk 0:00:03]}  Qg1+ {[%clk 0:00:10]} 83. Kc2 {[%clk 0:00:03]}  Qc1+ {[%clk 0:00:11]} 84. Kb3 {[%clk 0:00:03]}  Be5 {[%clk 0:00:11]} 85. Qc2 {[%clk 0:00:02]}  Qe3+ {[%clk 0:00:10]} 86. Kc4 {[%clk 0:00:02]}  Qd4+ {[%clk 0:00:10]} 87. Kb3 {[%clk 0:00:01]}  Bd6 {[%clk 0:00:09]} 88. Qc3 {[%clk 0:00:01]}  Qxc3+ {[%clk 0:00:08]} 89. Kxc3 {[%clk 0:00:02]}  Ke5 {[%clk 0:00:08]} 90. Kd3 {[%clk 0:00:02]}  Kf4 {[%clk 0:00:09]} 91. Kd4 {[%clk 0:00:03]}  Kxf3 {[%clk 0:00:09]} 92. e5 {[%clk 0:00:03]}  Be7 {[%clk 0:00:09]} 93. e6 {[%clk 0:00:03]}  Bh4 {[%clk 0:00:09]} 94. Ke5 {[%clk 0:00:04]}  Be7 {[%clk 0:00:10]} 95. Kf5 {[%clk 0:00:05]}  Bh4 {[%clk 0:00:10]} 96. Kg6 {[%clk 0:00:05]}  Be7 {[%clk 0:00:11]} 97. Kg7 {[%clk 0:00:05]}  Bh4 {[%clk 0:00:11]} 98. Kg6 {[%clk 0:00:05]}  Ke4 {[%clk 0:00:11]} 99. Kf7 {[%clk 0:00:05]}  Kd5 {[%clk 0:00:11]} 100. e7 {[%clk 0:00:04]}  Bxe7 {[%clk 0:00:12]} 1/2-1/2


[Site "https://www.chess.com"]

[Event "Titled Tuesday Blitz July 4 Late 2023"]
[White "Francisco_Ferrari"]
[Black "Miszler, Levente"]
[BlackFideId "763276"]
[WhiteElo "2194"]
[BlackElo "2450"]
[Result "0-1"]
[Round "2"]
[TimeControl "180+2"]
[Date "2023.07.04"]
[WhiteClock "0:01:04"]
[BlackClock "0:02:30"]
[Board "170"]

1. Nf3 {[%clk 0:03:00]}  Nc6 {[%clk 0:02:57]} 2. h4 {[%clk 0:02:54]}  e5 {[%clk 0:02:55]} 3. d3 {[%clk 0:02:52]}  d5 {[%clk 0:02:52]} 4. g3 {[%clk 0:02:48]}  Bd6 {[%clk 0:02:50]} 5. Bg2 {[%clk 0:02:47]}  Be6 {[%clk 0:02:48]} 6. Nbd2 {[%clk 0:02:47]}  h6 {[%clk 0:02:44]} 7. c3 {[%clk 0:02:43]}  Nf6 {[%clk 0:02:43]} 8. e4 {[%clk 0:02:38]}  Qd7 {[%clk 0:02:44]} 9. Qc2 {[%clk 0:02:22]}  O-O-O {[%clk 0:02:42]} 10. b4 {[%clk 0:02:18]}  dxe4 {[%clk 0:02:39]} 11. dxe4 {[%clk 0:02:05]}  Bxb4 {[%clk 0:02:39]} 12. cxb4 {[%clk 0:02:03]}  Nxb4 {[%clk 0:02:40]} 13. Qc3 {[%clk 0:01:57]}  Nd3+ {[%clk 0:02:36]} 14. Kf1 {[%clk 0:01:54]}  Ng4 {[%clk 0:02:36]} 15. Nc4 {[%clk 0:01:43]}  Ndxf2 {[%clk 0:02:34]} 16. Ba3 {[%clk 0:01:04]}  Bxc4+ {[%clk 0:02:30]} 0-1


[Site "https://www.chess.com"]

[Event "Titled Tuesday Blitz July 4 Late 2023"]
[White "Cueto, Jonny"]
[Black "Ladan, Nicholas"]
[WhiteFideId "3300145"]
[BlackFideId "30918855"]
[WhiteElo "2194"]
[BlackElo "2446"]
[Result "0-1"]
[Round "2"]
[TimeControl "180+2"]
[Date "2023.07.04"]
[WhiteClock "0:00:00"]
[BlackClock "0:00:57"]
[Board "171"]

1. d4 {[%clk 0:03:00]}  d5 {[%clk 0:02:59]} 2. Bf4 {[%clk 0:03:00]}  c5 {[%clk 0:02:59]} 3. e3 {[%clk 0:03:00]}  Nc6 {[%clk 0:02:59]} 4. Nf3 {[%clk 0:03:00]}  Qb6 {[%clk 0:02:59]} 5. Nc3 {[%clk 0:03:00]}  cxd4 {[%clk 0:02:55]} 6. Nxd5 {[%clk 0:02:59]}  Qa5+ {[%clk 0:02:52]} 7. b4 {[%clk 0:02:41]}  Qxd5 {[%clk 0:02:50]} 8. exd4 {[%clk 0:02:41]}  Bg4 {[%clk 0:02:42]} 9. c4 {[%clk 0:02:40]}  Qe4+ {[%clk 0:02:35]} 10. Be3 {[%clk 0:02:37]}  e5 {[%clk 0:02:35]} 11. Bd3 {[%clk 0:02:34]}  Bxb4+ {[%clk 0:02:29]} 12. Ke2 {[%clk 0:01:42]}  Nxd4+ {[%clk 0:02:27]} 13. Kf1 {[%clk 0:01:39]}  Bxf3 {[%clk 0:02:24]} 14. gxf3 {[%clk 0:01:39]}  Qxf3 {[%clk 0:02:22]} 15. Qa4+ {[%clk 0:01:28]}  Qc6 {[%clk 0:02:16]} 16. Qxc6+ {[%clk 0:01:06]}  bxc6 {[%clk 0:02:15]} 17. Rb1 {[%clk 0:01:04]}  a5 {[%clk 0:02:11]} 18. Be4 {[%clk 0:01:02]}  Nf6 {[%clk 0:02:04]} 19. Bg2 {[%clk 0:00:54]}  O-O-O {[%clk 0:02:02]} 20. Bxd4 {[%clk 0:00:54]}  Rxd4 {[%clk 0:02:02]} 21. Bxc6 {[%clk 0:00:55]}  Rxc4 {[%clk 0:02:00]} 22. Bb5 {[%clk 0:00:52]}  Rc2 {[%clk 0:02:00]} 23. Ba6+ {[%clk 0:00:52]}  Kc7 {[%clk 0:01:57]} 24. a3 {[%clk 0:00:44]}  Bc5 {[%clk 0:01:55]} 25. Rb7+ {[%clk 0:00:36]}  Kc6 {[%clk 0:01:54]} 26. Kg2 {[%clk 0:00:35]}  Rxf2+ {[%clk 0:01:53]} 27. Kh3 {[%clk 0:00:33]}  Ne4 {[%clk 0:01:39]} 28. Rg1 {[%clk 0:00:13]}  Nd6 {[%clk 0:01:28]} 29. Rbb1 {[%clk 0:00:08]}  Rf3+ {[%clk 0:01:26]} 30. Kg2 {[%clk 0:00:07]}  Rxa3 {[%clk 0:01:25]} 31. Rgc1 {[%clk 0:00:07]}  Ra2+ {[%clk 0:01:25]} 32. Kh3 {[%clk 0:00:06]}  h5 {[%clk 0:01:20]} 33. Rb3 {[%clk 0:00:06]}  g5 {[%clk 0:01:06]} 34. Rbc3 {[%clk 0:00:04]}  g4+ {[%clk 0:01:07]} 35. Kh4 {[%clk 0:00:01]}  Rxh2+ {[%clk 0:01:06]} 36. Kg5 {[%clk 0:00:01]}  Ne4+ {[%clk 0:01:06]} 37. Kf5 {[%clk 0:00:01]}  Nxc3 {[%clk 0:01:06]} 38. Rxc3 {[%clk 0:00:02]}  Rf2+ {[%clk 0:01:04]} 39. Kg5 {[%clk 0:00:01]}  h4 {[%clk 0:01:01]} 40. Bd3 {[%clk 0:00:02]}  h3 {[%clk 0:01:00]} 41. Be4+ {[%clk 0:00:02]}  Kb5 {[%clk 0:01:00]} 42. Kxg4 {[%clk 0:00:02]}  h2 {[%clk 0:01:00]} 43. Rc1 {[%clk 0:00:02]}  Rf4+ {[%clk 0:01:00]} 44. Kg3 {[%clk 0:00:02]}  Rxe4 {[%clk 0:01:01]} 45. Rb1+ {[%clk 0:00:02]}  Bb4 {[%clk 0:01:01]} 46. Rd1 {[%clk 0:00:02]}  h1=Q {[%clk 0:00:58]} 47. Rxh1 {[%clk 0:00:01]}  Rxh1 {[%clk 0:00:58]} 48. Kf3 {[%clk 0:00:00]}  Rhe1 {[%clk 0:00:57]} 0-1


[Site "https://www.chess.com"]

[Event "Titled Tuesday Blitz July 4 Late 2023"]
[White "szachmistrz2500"]
[Black "Oliveira, Tiago Batista"]
[BlackFideId "2108291"]
[WhiteElo "2440"]
[BlackElo "2159"]
[Result "1-0"]
[Round "2"]
[TimeControl "180+2"]
[Date "2023.07.04"]
[WhiteClock "0:00:55"]
[BlackClock "0:00:01"]
[Board "175"]

1. d4 {[%clk 0:03:00]}  Nf6 {[%clk 0:02:59]} 2. Nf3 {[%clk 0:02:59]}  g6 {[%clk 0:02:55]} 3. c4 {[%clk 0:02:59]}  Bg7 {[%clk 0:02:54]} 4. Nc3 {[%clk 0:03:00]}  d5 {[%clk 0:02:54]} 5. Bg5 {[%clk 0:02:49]}  Ne4 {[%clk 0:02:53]} 6. cxd5 {[%clk 0:02:48]}  Nxg5 {[%clk 0:02:53]} 7. Nxg5 {[%clk 0:02:49]}  e6 {[%clk 0:02:53]} 8. Nf3 {[%clk 0:02:49]}  exd5 {[%clk 0:02:53]} 9. e3 {[%clk 0:02:48]}  O-O {[%clk 0:02:53]} 10. Be2 {[%clk 0:02:48]}  c6 {[%clk 0:02:47]} 11. O-O {[%clk 0:02:48]}  Nd7 {[%clk 0:02:47]} 12. b4 {[%clk 0:02:47]}  a6 {[%clk 0:02:30]} 13. a4 {[%clk 0:02:45]}  Nf6 {[%clk 0:02:24]} 14. b5 {[%clk 0:02:40]}  axb5 {[%clk 0:01:55]} 15. axb5 {[%clk 0:02:40]}  Bf5 {[%clk 0:01:50]} 16. Qb3 {[%clk 0:02:31]}  Rxa1 {[%clk 0:01:39]} 17. Rxa1 {[%clk 0:02:30]}  c5 {[%clk 0:01:39]} 18. dxc5 {[%clk 0:02:21]}  Ne4 {[%clk 0:01:39]} 19. Nd4 {[%clk 0:02:21]}  Nxc5 {[%clk 0:01:37]} 20. Qxd5 {[%clk 0:02:18]}  Bxd4 {[%clk 0:01:25]} 21. exd4 {[%clk 0:02:07]}  Qxd5 {[%clk 0:00:55]} 22. Nxd5 {[%clk 0:02:08]}  Nb3 {[%clk 0:00:54]} 23. Ne7+ {[%clk 0:01:58]}  Kh8 {[%clk 0:00:52]} 24. Ra3 {[%clk 0:01:58]}  Nxd4 {[%clk 0:00:51]} 25. Bf1 {[%clk 0:01:48]}  Be6 {[%clk 0:00:35]} 26. Ra7 {[%clk 0:01:46]}  Rb8 {[%clk 0:00:20]} 27. Ra4 {[%clk 0:01:32]}  Rd8 {[%clk 0:00:15]} 28. Ra7 {[%clk 0:01:17]}  Rb8 {[%clk 0:00:14]} 29. g3 {[%clk 0:01:15]}  Kg7 {[%clk 0:00:13]} 30. Bg2 {[%clk 0:01:14]}  Kf8 {[%clk 0:00:13]} 31. Nd5 {[%clk 0:01:12]}  Nxb5 {[%clk 0:00:13]} 32. Ra1 {[%clk 0:01:09]}  b6 {[%clk 0:00:13]} 33. Rb1 {[%clk 0:01:08]}  Bxd5 {[%clk 0:00:12]} 34. Rxb5 {[%clk 0:01:07]}  Bxg2 {[%clk 0:00:11]} 35. Kxg2 {[%clk 0:01:08]}  Ke7 {[%clk 0:00:11]} 36. Kf3 {[%clk 0:01:08]}  Kd6 {[%clk 0:00:12]} 37. Ke4 {[%clk 0:01:09]}  Kc6 {[%clk 0:00:12]} 38. Rb1 {[%clk 0:01:08]}  b5 {[%clk 0:00:13]} 39. Rc1+ {[%clk 0:01:09]}  Kb6 {[%clk 0:00:13]} 40. Rd1 {[%clk 0:01:07]}  Re8+ {[%clk 0:00:12]} 41. Kf3 {[%clk 0:01:06]}  Kc5 {[%clk 0:00:12]} 42. Rd7 {[%clk 0:01:06]}  b4 {[%clk 0:00:11]} 43. Rxf7 {[%clk 0:01:04]}  b3 {[%clk 0:00:11]} 44. Rc7+ {[%clk 0:01:03]}  Kb6 {[%clk 0:00:10]} 45. Rc3 {[%clk 0:01:02]}  Rf8+ {[%clk 0:00:10]} 46. Kg2 {[%clk 0:01:02]}  Kb5 {[%clk 0:00:09]} 47. Rxb3+ {[%clk 0:01:02]}  Kc4 {[%clk 0:00:09]} 48. Rb7 {[%clk 0:01:01]}  h5 {[%clk 0:00:09]} 49. Rb6 {[%clk 0:01:00]}  Rg8 {[%clk 0:00:08]} 50. Rd6 {[%clk 0:00:59]}  Kc5 {[%clk 0:00:08]} 51. Rd2 {[%clk 0:00:59]}  g5 {[%clk 0:00:08]} 52. Kf3 {[%clk 0:00:58]}  g4+ {[%clk 0:00:08]} 53. Kf4 {[%clk 0:00:58]}  Rg7 {[%clk 0:00:06]} 54. Kf5 {[%clk 0:00:58]}  Rg8 {[%clk 0:00:06]} 55. Kf6 {[%clk 0:00:58]}  Kc4 {[%clk 0:00:04]} 56. Kf7 {[%clk 0:00:57]}  Rg5 {[%clk 0:00:04]} 57. Kf6 {[%clk 0:00:55]}  Rg8 {[%clk 0:00:04]} 58. Rd7 {[%clk 0:00:54]}  Rf8+ {[%clk 0:00:03]} 59. Rf7 {[%clk 0:00:54]}  Rxf7+ {[%clk 0:00:03]} 60. Kxf7 {[%clk 0:00:54]}  Kd3 {[%clk 0:00:04]} 61. Kg6 {[%clk 0:00:54]}  Ke2 {[%clk 0:00:04]} 62. Kxh5 {[%clk 0:00:55]}  Kf3 {[%clk 0:00:03]} 63. Kh4 {[%clk 0:00:55]}  Kxf2 {[%clk 0:00:03]} 64. Kxg4 {[%clk 0:00:55]}  Kg2 {[%clk 0:00:01]} 65. h4 {[%clk 0:00:55]} 1-0


[Site "https://www.chess.com"]

[Event "Titled Tuesday Blitz July 4 Late 2023"]
[White "Torres Dominguez, David"]
[Black "Goncalves, Davi Sulzbacher"]
[WhiteFideId "2220857"]
[BlackFideId "2154510"]
[WhiteElo "2145"]
[BlackElo "2440"]
[Result "1-0"]
[Round "2"]
[TimeControl "180+2"]
[Date "2023.07.04"]
[WhiteClock "0:01:54"]
[BlackClock "0:01:51"]
[Board "176"]

1. e4 {[%clk 0:03:00]}  g6 {[%clk 0:02:53]} 2. Nc3 {[%clk 0:02:59]}  Bg7 {[%clk 0:02:54]} 3. d4 {[%clk 0:02:54]}  d6 {[%clk 0:02:54]} 4. Bf4 {[%clk 0:02:48]}  Nf6 {[%clk 0:02:53]} 5. Qd2 {[%clk 0:02:47]}  O-O {[%clk 0:02:49]} 6. O-O-O {[%clk 0:02:34]}  c6 {[%clk 0:02:49]} 7. Bh6 {[%clk 0:02:34]}  b5 {[%clk 0:02:46]} 8. f3 {[%clk 0:02:29]}  b4 {[%clk 0:02:45]} 9. Nce2 {[%clk 0:02:25]}  a5 {[%clk 0:02:45]} 10. h4 {[%clk 0:02:24]}  Qb6 {[%clk 0:02:24]} 11. h5 {[%clk 0:02:23]}  e5 {[%clk 0:02:17]} 12. Bxg7 {[%clk 0:02:18]}  Kxg7 {[%clk 0:02:16]} 13. hxg6 {[%clk 0:02:18]}  fxg6 {[%clk 0:02:16]} 14. Qh6+ {[%clk 0:02:18]}  Kg8 {[%clk 0:02:17]} 15. dxe5 {[%clk 0:02:16]}  dxe5 {[%clk 0:02:16]} 16. Nf4 {[%clk 0:01:55]}  Qe3+ {[%clk 0:02:15]} 17. Kb1 {[%clk 0:01:55]}  Qxf4 {[%clk 0:01:51]} 18. Bc4+ {[%clk 0:01:54]} 1-0


[Site "https://www.chess.com"]

[Event "Titled Tuesday Blitz July 4 Late 2023"]
[White "Sailer, Mike"]
[Black "Sukandar, Irine Kharisma"]
[WhiteFideId "2012901"]
[BlackFideId "7101937"]
[WhiteElo "2122"]
[BlackElo "2438"]
[Result "1-0"]
[Round "2"]
[TimeControl "180+2"]
[Date "2023.07.04"]
[WhiteClock "0:00:05"]
[BlackClock "0:00:00"]
[Board "178"]

1. d4 {[%clk 0:03:00]}  Nf6 {[%clk 0:02:59]} 2. Nc3 {[%clk 0:03:00]}  d5 {[%clk 0:02:57]} 3. Bf4 {[%clk 0:03:00]}  g6 {[%clk 0:02:57]} 4. Qd2 {[%clk 0:02:50]}  c6 {[%clk 0:02:53]} 5. Nf3 {[%clk 0:02:49]}  Bf5 {[%clk 0:02:40]} 6. Ne5 {[%clk 0:02:45]}  Nbd7 {[%clk 0:02:34]} 7. g4 {[%clk 0:02:42]}  Nxg4 {[%clk 0:02:28]} 8. Nxg4 {[%clk 0:02:36]}  Bxg4 {[%clk 0:02:28]} 9. O-O-O {[%clk 0:02:35]}  Bg7 {[%clk 0:02:21]} 10. f3 {[%clk 0:02:35]}  Be6 {[%clk 0:02:16]} 11. e4 {[%clk 0:02:30]}  dxe4 {[%clk 0:02:15]} 12. fxe4 {[%clk 0:02:29]}  O-O {[%clk 0:02:12]} 13. Bh6 {[%clk 0:02:28]}  Qa5 {[%clk 0:02:02]} 14. Kb1 {[%clk 0:02:19]}  Nf6 {[%clk 0:01:52]} 15. h4 {[%clk 0:02:10]}  Nxe4 {[%clk 0:01:49]} 16. Qe3 {[%clk 0:01:46]}  Nxc3+ {[%clk 0:01:35]} 17. bxc3 {[%clk 0:01:45]}  Bxa2+ {[%clk 0:00:57]} 18. Kc1 {[%clk 0:01:41]}  Bxh6 {[%clk 0:00:18]} 19. Qxh6 {[%clk 0:01:41]}  Qxc3 {[%clk 0:00:11]} 20. Rd3 {[%clk 0:01:27]}  Qa1+ {[%clk 0:00:09]} 21. Kd2 {[%clk 0:01:27]}  Bc4 {[%clk 0:00:06]} 22. h5 {[%clk 0:01:15]}  Qa5+ {[%clk 0:00:05]} 23. Kd1 {[%clk 0:00:51]}  g5 {[%clk 0:00:04]} 24. Ra3 {[%clk 0:00:09]}  Qd5 {[%clk 0:00:02]} 25. Bxc4 {[%clk 0:00:09]}  Qxc4 {[%clk 0:00:01]} 26. Qxg5+ {[%clk 0:00:09]}  Kh8 {[%clk 0:00:01]} 27. Qe5+ {[%clk 0:00:10]}  f6 {[%clk 0:00:01]} 28. Qxe7 {[%clk 0:00:08]}  Rad8 {[%clk 0:00:01]} 29. Rd3 {[%clk 0:00:06]}  Qd5 {[%clk 0:00:01]} 30. Rg1 {[%clk 0:00:06]}  Qxh5+ {[%clk 0:00:00]} 31. Kc1 {[%clk 0:00:05]} 1-0


[Site "https://www.chess.com"]

[Event "Titled Tuesday Blitz July 4 Late 2023"]
[White "Tsukerman, Julia"]
[Black "Ai, Evan"]
[WhiteFideId "2621649"]
[BlackFideId "2094770"]
[WhiteElo "2088"]
[BlackElo "2427"]
[Result "0-1"]
[Round "2"]
[TimeControl "180+2"]
[Date "2023.07.04"]
[WhiteClock "0:00:04"]
[BlackClock "0:00:06"]
[Board "181"]

1. e4 {[%clk 0:03:00]}  e5 {[%clk 0:02:59]} 2. Nf3 {[%clk 0:02:55]}  Nc6 {[%clk 0:02:59]} 3. Bb5 {[%clk 0:02:54]}  a6 {[%clk 0:02:59]} 4. Ba4 {[%clk 0:02:51]}  Nf6 {[%clk 0:02:59]} 5. d3 {[%clk 0:02:52]}  b5 {[%clk 0:02:57]} 6. Bb3 {[%clk 0:02:51]}  d6 {[%clk 0:02:55]} 7. c3 {[%clk 0:02:50]}  Be7 {[%clk 0:02:54]} 8. O-O {[%clk 0:02:51]}  O-O {[%clk 0:02:52]} 9. Re1 {[%clk 0:02:51]}  h6 {[%clk 0:02:51]} 10. h3 {[%clk 0:02:51]}  Bb7 {[%clk 0:02:49]} 11. Nbd2 {[%clk 0:02:47]}  Na5 {[%clk 0:02:48]} 12. Bc2 {[%clk 0:02:46]}  c5 {[%clk 0:02:48]} 13. Nf1 {[%clk 0:02:47]}  Nc6 {[%clk 0:02:46]} 14. Ng3 {[%clk 0:02:47]}  Bc8 {[%clk 0:02:44]} 15. d4 {[%clk 0:02:45]}  cxd4 {[%clk 0:02:42]} 16. cxd4 {[%clk 0:02:46]}  Bd7 {[%clk 0:02:30]} 17. Nf5 {[%clk 0:02:27]}  Bxf5 {[%clk 0:02:28]} 18. exf5 {[%clk 0:02:25]}  Qc7 {[%clk 0:02:26]} 19. Bb3 {[%clk 0:02:13]}  e4 {[%clk 0:02:21]} 20. Nh2 {[%clk 0:02:03]}  d5 {[%clk 0:02:21]} 21. Ng4 {[%clk 0:01:58]}  Rad8 {[%clk 0:02:15]} 22. Be3 {[%clk 0:01:44]}  Nxg4 {[%clk 0:01:46]} 23. Qxg4 {[%clk 0:01:37]}  Qd6 {[%clk 0:01:38]} 24. Rac1 {[%clk 0:01:26]}  Nb4 {[%clk 0:01:34]} 25. Bf4 {[%clk 0:01:18]}  Qf6 {[%clk 0:01:18]} 26. Be5 {[%clk 0:00:46]}  Qg5 {[%clk 0:01:16]} 27. Qxg5 {[%clk 0:00:44]}  Bxg5 {[%clk 0:01:17]} 28. Rc7 {[%clk 0:00:37]}  Rc8 {[%clk 0:01:14]} 29. Ra7 {[%clk 0:00:17]}  Nd3 {[%clk 0:01:09]} 30. Re2 {[%clk 0:00:13]}  Rc1+ {[%clk 0:01:02]} 31. Kh2 {[%clk 0:00:12]}  Nxe5 {[%clk 0:00:31]} 32. dxe5 {[%clk 0:00:12]}  Rd8 {[%clk 0:00:17]} 33. Rxa6 {[%clk 0:00:11]}  d4 {[%clk 0:00:14]} 34. Rxe4 {[%clk 0:00:10]}  d3 {[%clk 0:00:15]} 35. Ra7 {[%clk 0:00:08]}  d2 {[%clk 0:00:13]} 36. Bxf7+ {[%clk 0:00:08]}  Kh8 {[%clk 0:00:13]} 37. Bb3 {[%clk 0:00:08]}  Re1 {[%clk 0:00:13]} 38. Rb4 {[%clk 0:00:07]}  Rxe5 {[%clk 0:00:10]} 39. Bd1 {[%clk 0:00:06]}  Re1 {[%clk 0:00:10]} 40. Bf3 {[%clk 0:00:05]}  d1=Q {[%clk 0:00:09]} 41. Bxd1 {[%clk 0:00:05]}  Rdxd1 {[%clk 0:00:10]} 42. Kg3 {[%clk 0:00:05]}  Rd3+ {[%clk 0:00:09]} 43. f3 {[%clk 0:00:04]}  Re5 {[%clk 0:00:08]} 44. Rxb5 {[%clk 0:00:04]}  Rxb5 {[%clk 0:00:07]} 45. Ra8+ {[%clk 0:00:05]}  Kh7 {[%clk 0:00:08]} 46. a4 {[%clk 0:00:04]}  Rxf5 {[%clk 0:00:08]} 47. a5 {[%clk 0:00:04]}  Bf4+ {[%clk 0:00:07]} 48. Kf2 {[%clk 0:00:04]}  Rc5 {[%clk 0:00:07]} 49. Ke1 {[%clk 0:00:04]}  Rc1+ {[%clk 0:00:06]} 0-1


[Site "https://www.chess.com"]

[Event "Titled Tuesday Blitz July 4 Late 2023"]
[White "FromTexas54"]
[Black "Winkels, Marcel"]
[BlackFideId "1003887"]
[WhiteElo "2426"]
[BlackElo "2080"]
[Result "1-0"]
[Round "2"]
[TimeControl "180+2"]
[Date "2023.07.04"]
[WhiteClock "0:01:45"]
[BlackClock "0:00:02"]
[Board "182"]

1. d4 {[%clk 0:02:54]}  Nf6 {[%clk 0:02:58]} 2. c4 {[%clk 0:02:54]}  g6 {[%clk 0:02:58]} 3. Nc3 {[%clk 0:02:53]}  Bg7 {[%clk 0:02:59]} 4. e4 {[%clk 0:02:54]}  d6 {[%clk 0:02:59]} 5. Nf3 {[%clk 0:02:54]}  O-O {[%clk 0:02:59]} 6. Be2 {[%clk 0:02:55]}  e5 {[%clk 0:02:58]} 7. O-O {[%clk 0:02:56]}  Nc6 {[%clk 0:02:57]} 8. d5 {[%clk 0:02:56]}  Ne7 {[%clk 0:02:57]} 9. b4 {[%clk 0:02:56]}  a5 {[%clk 0:02:55]} 10. Ba3 {[%clk 0:02:56]}  b6 {[%clk 0:02:53]} 11. bxa5 {[%clk 0:02:52]}  Rxa5 {[%clk 0:02:52]} 12. Bb4 {[%clk 0:02:52]}  Ra8 {[%clk 0:02:51]} 13. a4 {[%clk 0:02:53]}  Nd7 {[%clk 0:02:48]} 14. a5 {[%clk 0:02:49]}  Nc5 {[%clk 0:02:43]} 15. axb6 {[%clk 0:02:45]}  Rxa1 {[%clk 0:02:42]} 16. Qxa1 {[%clk 0:02:46]}  cxb6 {[%clk 0:02:41]} 17. Nd2 {[%clk 0:02:42]}  f5 {[%clk 0:02:40]} 18. Nb5 {[%clk 0:02:39]}  fxe4 {[%clk 0:02:33]} 19. Bxc5 {[%clk 0:02:38]}  bxc5 {[%clk 0:02:31]} 20. Nxe4 {[%clk 0:02:38]}  Nf5 {[%clk 0:02:30]} 21. Bg4 {[%clk 0:02:35]}  Nd4 {[%clk 0:01:32]} 22. Bxc8 {[%clk 0:02:33]}  Qxc8 {[%clk 0:01:31]} 23. Nbxd6 {[%clk 0:02:32]}  Qg4 {[%clk 0:01:21]} 24. h3 {[%clk 0:02:14]}  Qf4 {[%clk 0:01:02]} 25. Qd1 {[%clk 0:02:01]}  h5 {[%clk 0:00:54]} 26. Nxc5 {[%clk 0:01:59]}  g5 {[%clk 0:00:46]} 27. Ne6 {[%clk 0:01:58]}  Nxe6 {[%clk 0:00:45]} 28. dxe6 {[%clk 0:01:59]}  Qf6 {[%clk 0:00:24]} 29. Qd5 {[%clk 0:01:57]}  Kh7 {[%clk 0:00:20]} 30. Ne4 {[%clk 0:01:54]}  Qe7 {[%clk 0:00:17]} 31. Qd7 {[%clk 0:01:48]}  Re8 {[%clk 0:00:13]} 32. c5 {[%clk 0:01:46]}  Qxe6 {[%clk 0:00:02]} 33. Nxg5+ {[%clk 0:01:45]} 1-0


[Site "https://www.chess.com"]